bitfinex-derivatives/quotes_BTCF0:USTF0_20251023
["timestamp","ask_amount","ask_price","bid_price","bid_amount"]
[1761248730547,0.4845616,110470.0,110460.0,0.1493767]
[1761248730747,0.4845616,110470.0,110460.0,0.4673367]
[1761248731948,0.4855616,110470.0,110460.0,0.4673367]
[1761248732542,0.4855616,110470.0,110460.0,0.62980591]
[1761248733444,0.4845616,110470.0,110460.0,0.62980591]
[1761248734049,0.4845616,110470.0,110460.0,0.63080591]
[1761248735042,0.4845616,110470.0,110460.0,0.4683367]
[1761248736554,0.4845616,110470.0,110460.0,0.63080591]
[1761248738059,0.4845616,110470.0,110460.0,0.4683367]
[1761248741371,0.50890864,110470.0,110460.0,0.4683367]
[1761248747874,0.54137929,110470.0,110460.0,0.4683367]
[1761248752477,0.51703225,110470.0,110460.0,0.4683367]
[1761248752667,0.67933974,110470.0,110460.0,0.63064419]
[1761248753775,0.31853974,110470.0,110460.0,0.63064419]
[1761248754074,0.67933974,110470.0,110460.0,0.63064419]
[1761248754276,0.72804712,110470.0,110460.0,0.63064419]
[1761248756079,0.72804712,110470.0,110460.0,0.4683367]
[1761248756575,0.72804712,110470.0,110460.0,0.63064419]
[1761248756776,0.03727065,110470.0,110460.0,1.55375168]
[1761248756973,0.0291596,110470.0,110460.0,1.5781596]
[1761248757174,0.41763025,110480.0,110470.0,0.1486584]
[1761248757478,0.0243596,110480.0,110470.0,0.31096589]
[1761248757674,0.0528196,110480.0,110470.0,0.31096589]
[1761248757871,0.1433099,110480.0,110470.0,0.33537381]
[1761248758772,0.1443099,110480.0,110470.0,0.33537381]
[1761248759681,0.1443099,110480.0,110470.0,0.33637381]
[1761248760276,0.0538196,110480.0,110470.0,0.33637381]
[1761248760476,0.1443096,110480.0,110470.0,0.33637381]
[1761248760675,0.1433096,110480.0,110470.0,0.33637381]
[1761248761278,0.1433096,110480.0,110470.0,0.17406632]
[1761248761479,0.1433096,110480.0,110470.0,0.33637381]
[1761248761781,0.11895,110480.0,110470.0,0.33637381]
[1761248764577,0.11895,110480.0,110470.0,0.17406632]
[1761248764884,0.11895,110480.0,110470.0,0.33637381]
[1761248765986,0.80436498,110480.0,110470.0,0.17406612]
[1761248766288,0.10472,110480.0,110470.0,0.4674182]
[1761248766489,0.11895,110480.0,110470.0,0.65413361]
[1761248767389,0.11995,110480.0,110470.0,0.65413361]
[1761248767783,0.11995,110480.0,110470.0,0.62872569]
[1761248767983,0.11895,110480.0,110470.0,0.62872569]
[1761248768689,0.11895,110480.0,110470.0,0.62972569]
[1761248771091,0.1189501,110480.0,110470.0,0.62972569]
[1761248771989,0.1189501,110480.0,110470.0,0.31196569]
[1761248772189,0.1189501,110480.0,110470.0,0.62972569]
[1761248772389,0.53657205,110490.0,110480.0,0.1486501]
[1761248772584,0.69887954,110490.0,110480.0,0.31095759]
[1761248773589,0.69987954,110490.0,110480.0,0.31095759]
[1761248773892,0.68564954,110490.0,110480.0,0.31095759]
[1761248774194,0.17677205,110490.0,110480.0,0.47326508]
[1761248774796,0.0253596,110490.0,110480.0,0.99637257]
[1761248774992,0.51699695,110510.0,110500.0,0.1486337]
[1761248775294,0.42653065,110510.0,110500.0,0.79100868]
[1761248775482,0.39406,110510.0,110500.0,0.79100868]
[1761248776288,0.4845253,110510.0,110500.0,0.79100868]
[1761248776793,0.4925253,110510.0,110500.0,0.79100868]
[1761248777195,0.4945253,110510.0,110500.0,0.79100868]
[1761248777395,0.4945253,110510.0,110500.0,0.4663937]
[1761248777597,0.4945253,110510.0,110500.0,0.62870119]
[1761248778095,0.4945253,110510.0,110500.0,0.63785059]
[1761248778689,0.65683279,110510.0,110500.0,0.63785059]
[1761248778890,0.81914028,110510.0,110500.0,0.02243]
[1761248779093,0.81914028,110510.0,110490.0,0.04523]
[1761248779094,0.1189335,110500.0,110490.0,0.04523]
[1761248779299,0.81145848,110500.0,110490.0,0.36307]
[1761248779500,0.81145848,110500.0,110490.0,0.376]
[1761248780290,0.84492913,110500.0,110490.0,0.376]
[1761248780891,0.84492913,110500.0,110490.0,0.31784]
[1761248781299,0.90263651,110500.0,110490.0,0.34027]
[1761248781602,0.90263651,110500.0,110490.0,0.31784]
[1761248782305,0.1189499,110480.0,110470.0,0.47542531]
[1761248782602,0.64205739,110480.0,110470.0,0.47542531]
[1761248783296,0.64205739,110480.0,110470.0,0.4664981]
[1761248783595,0.64205739,110480.0,110470.0,0.376]
[1761248784193,0.64205739,110480.0,110470.0,0.377]
[1761248784395,0.64205739,110480.0,110470.0,0.05916]
[1761248784593,1.00285739,110480.0,110470.0,0.05916]
[1761248784798,1.16516488,110480.0,110470.0,0.377]
[1761248785296,1.19760436,110480.0,110470.0,0.377]
[1761248785897,0.87398938,110480.0,110470.0,0.377]
[1761248786104,1.03629687,110480.0,110470.0,0.377]
[1761248786504,1.04329687,110480.0,110470.0,0.377]
[1761248787102,1.20560436,110480.0,110470.0,0.377]
[1761248787303,1.04329687,110480.0,110470.0,0.376]
[1761248788102,1.09400425,110480.0,110470.0,0.376]
[1761248788905,1.25631174,110480.0,110470.0,0.376]
[1761248789203,1.09400425,110480.0,110470.0,0.376]
[1761248790208,1.09400425,110480.0,110470.0,0.4664984]
[1761248790709,1.09400425,110480.0,110470.0,0.62880589]
[1761248791306,1.04529687,110480.0,110470.0,0.4664984]
[1761248791506,1.04329687,110480.0,110470.0,0.62880589]
[1761248792101,0.88098938,110480.0,110470.0,0.62880589]
[1761248792311,1.03629687,110480.0,110470.0,0.62880589]
[1761248793410,1.03529687,110480.0,110470.0,0.62980589]
[1761248793611,1.03529687,110480.0,110470.0,0.53930749]
[1761248793908,1.03629687,110480.0,110470.0,0.53930749]
[1761248794108,1.03629687,110480.0,110470.0,0.4664981]
[1761248794607,1.03629687,110480.0,110470.0,0.62880559]
[1761248795408,1.03529687,110480.0,110470.0,0.62880559]
[1761248796101,0.39423948,110480.0,110470.0,0.79111308]
[1761248796302,0.001,110480.0,110470.0,1.19111308]
[1761248796499,0.001,110480.0,110470.0,1.19211308]
[1761248796706,0.001,110480.0,110470.0,1.55291308]
[1761248796913,0.06089948,110500.0,110490.0,0.1483918]
[1761248797106,0.72798205,110510.0,110500.0,0.1483836]
[1761248797308,0.72798205,110510.0,110500.0,0.31069109]
[1761248798013,0.72798205,110510.0,110500.0,0.1483836]
[1761248798314,0.51696718,110510.0,110500.0,0.31967334]
[1761248798513,0.42649948,110510.0,110500.0,0.31967334]
[1761248798902,0.42649948,110510.0,110500.0,0.48198083]
[1761248799107,0.3726,110510.0,110500.0,0.31967334]
[1761248799415,0.40106,110510.0,110500.0,0.31967334]
[1761248799616,0.04226,110510.0,110500.0,0.31967334]
[1761248800315,0.04226,110510.0,110500.0,0.48198083]
[1761248800512,0.0138,110510.0,110500.0,0.48198083]
[1761248801320,0.0138,110510.0,110500.0,0.84278083]
[1761248802015,0.0138,110510.0,110500.0,1.24278083]
[1761248802315,0.64202099,110530.0,110520.0,0.1483671]
[1761248802515,0.64202099,110530.0,110520.0,0.62863459]
[1761248803212,0.64202099,110530.0,110520.0,0.37587]
[1761248803413,0.64702099,110530.0,110520.0,0.37587]
[1761248803922,0.64702099,110530.0,110520.0,0.53817749]
[1761248804114,0.64702099,110530.0,110520.0,0.37587]
[1761248804721,0.65402099,110530.0,110520.0,0.37687]
[1761248805614,1.22343848,110530.0,110520.0,0.31892]
[1761248805814,1.25587796,110530.0,110520.0,0.31892]
[1761248806316,1.08646047,110530.0,110520.0,0.36299]
[1761248806520,1.08646047,110530.0,110520.0,0.37683]
[1761248806724,1.05402099,110530.0,110520.0,0.37683]
[1761248806913,1.05402099,110530.0,110520.0,0.4672874]
[1761248807422,1.05402099,110530.0,110520.0,0.37683]
[1761248807916,0.8917135,110530.0,110520.0,0.37683]
[1761248808120,1.08646047,110530.0,110520.0,0.37683]
[1761248808519,1.05402099,110530.0,110520.0,0.37683]
[1761248808821,0.65402099,110530.0,110520.0,0.37683]
[1761248809720,0.65402099,110530.0,110520.0,0.4672871]
[1761248811423,0.65402099,110530.0,110520.0,0.37683]
[1761248812223,0.65402099,110530.0,110520.0,0.4672871]
[1761248812824,0.4917135,110530.0,110520.0,0.4672871]
[1761248821326,0.68629246,110530.0,110520.0,0.001]
[1761248821530,0.68629246,110530.0,110520.0,0.3623]
[1761248822426,0.03723948,110550.0,110530.0,0.1031192]
[1761248822620,0.03723948,110550.0,110540.0,0.98739058]
[1761248822621,0.06569948,110550.0,110540.0,0.98739058]
[1761248822828,0.0048,110550.0,110540.0,0.98739058]
[1761248823526,0.01903,110550.0,110540.0,0.98739058]
[1761248824133,0.01903,110550.0,110540.0,0.98839058]
[1761248824332,0.0048,110550.0,110540.0,0.98839058]
[1761248824636,0.0098,110550.0,110540.0,1.38839058]
[1761248825536,0.0048,110550.0,110540.0,1.38839058]
[1761248825738,0.0098,110550.0,110540.0,1.38839058]
[1761248827230,0.1144626,110550.0,110540.0,0.61930948]
[1761248827431,0.1144626,110550.0,110540.0,0.4655709]
[1761248827432,0.4894926,110550.0,110540.0,0.4655709]
[1761248827937,0.4894926,110550.0,110540.0,0.62771038]
[1761248828236,0.4894926,110550.0,110540.0,0.4655709]
[1761248828941,0.03826,110550.0,110540.0,0.8263709]
[1761248830930,0.1286929,110550.0,110540.0,0.98851038]
[1761248833942,0.1286929,110550.0,110540.0,0.8263709]
[1761248834236,0.1286929,110550.0,110540.0,0.98851038]
[1761248835738,0.1286929,110550.0,110540.0,0.62771038]
[1761248835944,0.1286929,110550.0,110540.0,0.98851038]
[1761248837539,0.1286929,110550.0,110540.0,0.67055038]
[1761248837843,0.1286929,110550.0,110540.0,0.98839038]
[1761248838446,0.1286929,110550.0,110540.0,0.62759038]
[1761248839147,1.07593948,110550.0,110540.0,0.05717]
[1761248839342,1.28578026,110550.0,110540.0,0.001]
[1761248839537,1.28578026,110550.0,110510.0,0.05617]
[1761248839538,0.01423,110520.0,110510.0,0.05617]
[1761248839744,0.66617032,110520.0,110510.0,0.05617]
[1761248839943,0.6742748,110520.0,110510.0,0.05617]
[1761248840249,0.6742748,110520.0,110510.0,0.37409]
[1761248840951,0.6782748,110520.0,110510.0,0.37409]
[1761248841150,0.6782748,110520.0,110510.0,0.05617]
[1761248841450,0.6782748,110520.0,110510.0,0.37409]
[1761248841652,0.6782748,110520.0,110510.0,0.33964]
[1761248842151,0.6782748,110520.0,110510.0,0.31792]
[1761248842744,0.1189255,110510.0,110500.0,0.05617]
[1761248842944,0.69860283,110510.0,110500.0,0.37409]
[1761248843441,0.69859679,110510.0,110500.0,0.37409]
[1761248843757,1.07428661,110510.0,110500.0,0.37398]
[1761248843946,1.12291349,110510.0,110500.0,0.37398]
[1761248844354,1.07428661,110510.0,110500.0,0.37398]
[1761248844653,1.07528661,110510.0,110500.0,0.37398]
[1761248845253,1.0995883,110510.0,110500.0,0.37398]
[1761248845652,1.08239661,110510.0,110500.0,0.33964]
[1761248845846,1.07528661,110510.0,110500.0,0.37409]
[1761248846448,1.09958003,110510.0,110500.0,0.37409]
[1761248848154,1.04286498,110510.0,110500.0,0.37409]
[1761248849854,1.04286498,110510.0,110500.0,0.37413]
[1761248850151,1.04286498,110510.0,110500.0,0.05617]
[1761248850355,0.1189334,110500.0,110490.0,0.4664306]
[1761248850540,0.64187288,110500.0,110490.0,0.4664306]
[1761248851354,0.64187288,110500.0,110490.0,0.37595]
[1761248851554,0.64187288,110500.0,110490.0,0.4664316]
[1761248851751,0.4797334,110500.0,110490.0,0.4664316]
[1761248852150,0.4797334,110500.0,110490.0,0.4674316]
[1761248852360,0.4797334,110500.0,110490.0,0.4714316]
[1761248853049,0.4797334,110500.0,110490.0,0.38095]
[1761248854158,0.4797334,110500.0,110490.0,0.4714317]
[1761248856856,0.64187288,110500.0,110490.0,0.4714317]
[1761248857057,0.64187288,110500.0,110490.0,0.06299]
[1761248857250,0.64187288,110500.0,110490.0,0.02729]
[1761248857449,0.64187288,110500.0,110490.0,0.34521]
[1761248857658,0.64187288,110500.0,110490.0,0.36824]
[1761248858444,0.64187288,110500.0,110490.0,0.36424]
[1761248858845,0.64187288,110500.0,110490.0,0.36324]
[1761248859054,0.64287288,110500.0,110490.0,0.36324]
[1761248860853,0.64287288,110500.0,110490.0,0.37616]
[1761248861560,0.64287288,110500.0,110490.0,0.05824]
[1761248861767,0.64287288,110500.0,110490.0,0.37616]
[1761248863963,0.64287288,110500.0,110490.0,0.4666416]
[1761248864161,0.4807334,110500.0,110490.0,0.4666416]
[1761248864655,0.39026,110500.0,110490.0,0.4666416]
[1761248864867,0.02946,110500.0,110490.0,0.62878108]
[1761248865363,0.001,110500.0,110490.0,0.62878108]
[1761248865659,0.02429342,110520.0,110500.0,0.090471]
[1761248865859,0.02429342,110520.0,110510.0,0.98952468]
[1761248866063,0.39322163,110530.0,110510.0,0.98952468]
[1761248866064,0.50400232,110530.0,110520.0,0.148697]
[1761248866565,0.41355342,110530.0,110520.0,0.148697]
[1761248866857,0.64184828,110530.0,110520.0,0.148697]
[1761248867049,0.64184828,110530.0,110520.0,0.05824]
[1761248867254,0.6661417,110530.0,110520.0,0.05824]
[1761248867451,0.50400222,110530.0,110520.0,0.1486969]
[1761248867654,0.6661417,110530.0,110520.0,0.1486969]
[1761248867854,0.50400222,110530.0,110520.0,0.1486969]
[1761248868051,0.50400222,110530.0,110520.0,0.1536969]
[1761248868655,0.50400222,110530.0,110520.0,0.1496969]
[1761248868866,0.50400222,110530.0,110520.0,0.1486969]
[1761248869066,0.50500222,110530.0,110520.0,0.1486969]
[1761248869765,0.50400222,110530.0,110520.0,0.1496969]
[1761248870067,0.53642385,110530.0,110520.0,0.1496969]
[1761248870566,0.53642385,110530.0,110520.0,0.1536969]
[1761248872370,0.69856333,110530.0,110520.0,0.1536969]
[1761248872663,0.69856333,110530.0,110520.0,0.06324]
[1761248872862,0.69856333,110530.0,110520.0,0.153697]
[1761248874459,0.69956333,110530.0,110520.0,0.148697]
[1761248874965,0.69956142,110530.0,110520.0,0.148697]
[1761248875162,0.60911262,110530.0,110520.0,0.148697]
[1761248875366,0.57669099,110530.0,110520.0,0.148697]
[1761248876467,0.57669099,110530.0,110520.0,0.31083457]
[1761248878066,0.60911262,110530.0,110520.0,0.31083457]
[1761248879971,0.44697505,110530.0,110520.0,0.31083457]
[1761248880175,0.41455342,110530.0,110520.0,0.31083457]
[1761248880362,0.02529342,110530.0,110520.0,1.23377214]
[1761248880670,0.001,110530.0,110520.0,1.23377214]
[1761248880862,0.45077505,110550.0,110540.0,0.1487206]
[1761248881067,0.41840013,110550.0,110540.0,0.79095574]
[1761248881267,0.41840013,110550.0,110540.0,0.62881817]
[1761248882068,0.42240013,110550.0,110540.0,0.62881817]
[1761248882469,0.06160013,110550.0,110540.0,0.62881817]
[1761248882781,0.0088,110550.0,110540.0,0.79095574]
[1761248883278,0.0088,110550.0,110540.0,0.7999535]
[1761248883670,0.0088,110550.0,110540.0,0.8049535]
[1761248883876,0.0048,110550.0,110540.0,0.8059535]
[1761248884571,0.0048,110550.0,110540.0,1.1667535]
[1761248886675,0.3608,110560.0,110550.0,0.1487124]
[1761248886979,0.3608,110560.0,110550.0,0.31084997]
[1761248887875,0.3608,110560.0,110550.0,0.31584997]
[1761248888479,0.30536,110570.0,110560.0,0.1487042]
[1761248888779,0.66616,110570.0,110560.0,0.62872177]
[1761248890079,0.66716,110570.0,110560.0,0.62872177]
[1761248890274,0.66716,110570.0,110560.0,0.4665842]
[1761248892884,0.50502243,110570.0,110560.0,0.4665842]
[1761248893179,0.66716,110570.0,110560.0,0.4665842]
[1761248893682,0.66716,110570.0,110560.0,0.62872177]
[1761248894883,0.66716,110570.0,110560.0,0.4665842]
[1761248897185,0.50502243,110570.0,110560.0,0.4665842]
[1761248897385,0.66716,110570.0,110560.0,0.4665842]
[1761248897984,0.66716,110570.0,110560.0,0.62872177]
[1761248899082,0.65293,110570.0,110560.0,0.62872177]
[1761248899280,0.66716,110570.0,110560.0,0.62872177]
[1761248900286,0.53744406,110570.0,110560.0,0.79085934]
[1761248900486,0.50501623,110570.0,110560.0,0.62872177]
[1761248901483,0.40037013,110570.0,110560.0,0.62872177]
[1761248901678,0.02534013,110570.0,110560.0,0.79085934]
[1761248901878,0.001,110570.0,110560.0,0.79085934]
[1761248902475,0.001,110570.0,110560.0,1.15165934]
[1761248905296,0.43659176,110590.0,110580.0,0.1472979]
[1761248905484,0.38994013,110590.0,110580.0,0.78937304]
[1761248906095,0.02914013,110590.0,110580.0,0.78937304]
[1761248906492,0.03314013,110590.0,110580.0,0.78937304]
[1761248906693,0.0088,110590.0,110580.0,0.78937304]
[1761248907593,0.0088,110590.0,110580.0,1.15017304]
[1761248908305,0.03314013,110590.0,110580.0,1.15017304]
[1761248908509,0.03014013,110590.0,110580.0,1.15017304]
[1761248910302,0.0058,110590.0,110580.0,1.15017304]
[1761248910503,0.0058,110590.0,110580.0,1.31231061]
[1761248910716,0.0058,110590.0,110580.0,1.55017304]
[1761248911307,0.0058,110590.0,110580.0,1.2258979]
[1761248911508,0.0058,110590.0,110580.0,1.55017304]
[1761248913410,0.1246597,110590.0,110580.0,0.5472979]
[1761248913616,0.28679727,110590.0,110580.0,0.62711547]
[1761248914005,0.1246597,110590.0,110580.0,0.62711547]
[1761248916414,0.1246597,110590.0,110580.0,0.30943547]
[1761248916614,0.1246597,110590.0,110580.0,0.62707547]
[1761248917116,0.28679727,110590.0,110580.0,0.62707547]
[1761248917715,0.1246597,110590.0,110580.0,0.62707547]
[1761248919011,0.4854597,110590.0,110580.0,0.30943547]
[1761248919214,0.4854597,110590.0,110580.0,0.62703547]
[1761248921921,0.4854597,110590.0,110580.0,0.30943547]
[1761248922121,0.4854597,110590.0,110580.0,0.62703547]
[1761248922313,0.4854597,110590.0,110580.0,0.78917304]
[1761248925315,0.64759727,110590.0,110580.0,0.62703547]
[1761248926224,0.6719374,110590.0,110580.0,0.62703547]
[1761248927220,0.50979983,110590.0,110580.0,0.62703547]
[1761248927425,0.50979983,110590.0,110580.0,0.4648979]
[1761248927625,0.6719374,110590.0,110580.0,0.62703547]
[1761248928026,0.6719374,110590.0,110580.0,0.30943547]
[1761248928226,0.6719374,110590.0,110580.0,0.62695547]
[1761248929326,0.70435903,110590.0,110580.0,0.62695547]
[1761248929524,0.70435903,110590.0,110580.0,0.21902757]
[1761248929721,1.24215647,110590.0,110580.0,0.05689]
[1761248929921,1.24215647,110590.0,110580.0,0.31752]
[1761248929922,1.57053484,110590.0,110580.0,0.31752]
[1761248930122,1.47329567,110590.0,110580.0,0.31752]
[1761248930429,1.47329567,110590.0,110580.0,0.33909]
[1761248930632,1.63543324,110590.0,110580.0,0.33909]
[1761248931430,1.63543324,110590.0,110580.0,0.04417]
[1761248932028,1.07329567,110590.0,110580.0,0.05691]
[1761248932229,1.05715495,110590.0,110580.0,0.05691]
[1761248933432,1.05715495,110590.0,110580.0,0.1473171]
[1761248936733,1.05698259,110590.0,110580.0,0.1473171]
[1761248938233,1.08949222,110590.0,110580.0,0.1473171]
[1761248939837,1.08849222,110590.0,110580.0,0.1473171]
[1761248940038,1.08849222,110590.0,110580.0,0.1483171]
[1761248940227,0.92652701,110590.0,110580.0,0.1523171]
[1761248941740,1.08849222,110590.0,110580.0,0.06191]
[1761248941939,1.48849222,110590.0,110580.0,0.34417]
[1761248943134,1.32652701,110590.0,110580.0,0.36565]
[1761248943332,1.48849222,110590.0,110580.0,0.34417]
[1761248943533,1.48949222,110590.0,110580.0,0.34317]
[1761248943839,1.48949222,110590.0,110580.0,0.33917]
[1761248947044,1.48949222,110590.0,110580.0,0.36065]
[1761248947742,1.48949222,110590.0,110580.0,0.04305]
[1761248947946,1.48949222,110590.0,110580.0,0.36073]
[1761248949647,1.32752701,110590.0,110580.0,0.0569]
[1761248949948,1.08949222,110590.0,110580.0,0.37458]
[1761248950337,0.63829252,110590.0,110580.0,0.4649869]
[1761248950537,0.72869122,110590.0,110580.0,0.4649469]
[1761248950747,0.51796833,110590.0,110580.0,0.4649469]
[1761248950938,0.72869122,110590.0,110580.0,0.4649469]
[1761248951246,0.72869122,110590.0,110580.0,0.1473069]
[1761248951443,0.72869122,110590.0,110580.0,0.4649469]
[1761248952544,0.56672601,110590.0,110580.0,0.4649469]
[1761248952741,0.51796833,110590.0,110580.0,0.4649469]
[1761248953342,0.56672601,110590.0,110580.0,0.4649469]
[1761248953747,0.72869122,110590.0,110580.0,0.4649469]
[1761248954149,0.72769122,110590.0,110580.0,0.4659469]
[1761248954756,0.67893354,110590.0,110580.0,0.4659469]
[1761248955048,0.67893354,110590.0,110580.0,0.4699469]
[1761248955249,0.72769122,110590.0,110580.0,0.4699469]
[1761248955850,0.56572601,110590.0,110580.0,0.4699469]
[1761248956150,0.20492601,110590.0,110580.0,0.4699469]
[1761248966553,0.08606731,110590.0,110580.0,0.63191211]
[1761248966748,0.02920273,110590.0,110580.0,0.65625453]
[1761248966951,0.02920273,110590.0,110580.0,1.01705453]
[1761248968162,0.06171236,110590.0,110580.0,0.99271211]
[1761248969558,0.06171236,110590.0,110580.0,1.39271211]
[1761248969756,0.08126917,110600.0,110590.0,0.05836]
[1761248969958,0.08126917,110600.0,110590.0,0.31072391]
[1761248971463,0.08226917,110600.0,110590.0,0.31072391]
[1761248971967,0.08226917,110600.0,110590.0,0.31998613]
[1761248972160,0.03351149,110600.0,110590.0,0.31998613]
[1761248972575,0.03351149,110600.0,110590.0,0.68078613]
[1761248972864,0.43801768,110610.0,110600.0,0.1487505]
[1761248973163,0.43801768,110610.0,110600.0,0.62827571]
[1761248974162,0.38926,110610.0,110600.0,0.62827571]
[1761248974360,0.38926,110610.0,110600.0,0.4663105]
[1761248974560,0.4796424,110610.0,110600.0,0.4663105]
[1761248975663,0.4654124,110610.0,110600.0,0.4663105]
[1761248976067,0.4654124,110610.0,110600.0,0.4673105]
[1761248976368,0.4796424,110610.0,110600.0,0.4673105]
[1761248978569,0.4511824,110610.0,110600.0,0.4673105]
[1761248978766,0.64160491,110620.0,110610.0,0.1255124]
[1761248979065,0.64160491,110620.0,110610.0,0.1487424]
[1761248980069,0.64160491,110620.0,110610.0,0.1497424]
[1761248980571,0.64160491,110620.0,110610.0,0.05936]
[1761248980771,0.62737491,110620.0,110610.0,0.1497424]
[1761248981664,0.64160491,110620.0,110610.0,0.1497424]
[1761248982668,0.4796397,110620.0,110610.0,0.1497424]
[1761248983674,0.52839738,110620.0,110610.0,0.1497424]
[1761248987078,0.69036259,110620.0,110610.0,0.1497424]
[1761248987469,0.52839738,110620.0,110610.0,0.1497424]
[1761248989478,0.69036259,110620.0,110610.0,0.1497424]
[1761248992081,0.69036259,110620.0,110610.0,0.05936]
[1761248992273,0.69036259,110620.0,110610.0,0.37684]
[1761248992679,0.69036259,110620.0,110610.0,0.4672224]
[1761248993780,0.52839738,110620.0,110610.0,0.4672224]
[1761248993974,0.69036259,110620.0,110610.0,0.4672224]
[1761248996179,0.69036259,110620.0,110610.0,0.37684]
[1761248996684,0.8521897,110620.0,110610.0,0.37684]
[1761249000175,0.80343202,110620.0,110610.0,0.001]
[1761249000490,0.1183951,110570.0,110560.0,0.04864967]
[1761249000680,1.00765776,110570.0,110560.0,1e-07]
[1761249000989,0.1138314,110550.0,110540.0,0.02683304]
[1761249001184,0.44658596,110550.0,110540.0,0.02683304]
[1761249001486,1.23272412,110550.0,110540.0,0.00452304]
[1761249001683,1.63636412,110550.0,110540.0,0.00452304]
[1761249001986,1.63636412,110550.0,110540.0,0.06233304]
[1761249001987,1.06735806,110550.0,110540.0,0.06233304]
[1761249002188,1.18043994,110550.0,110540.0,0.04833304]
[1761249002386,1.18754994,110550.0,110540.0,0.00452304]
[1761249002693,1.21998179,110550.0,110540.0,0.00452304]
[1761249002995,1.21287179,110550.0,110540.0,0.04833304]
[1761249003188,1.21287179,110550.0,110540.0,0.06233304]
[1761249003589,1.21287179,110550.0,110540.0,0.00552304]
[1761249003787,0.88907947,110550.0,110540.0,0.04933304]
[1761249003991,1.21287179,110550.0,110540.0,0.06333304]
[1761249004192,1.05097563,110550.0,110540.0,0.06233304]
[1761249004491,0.65874378,110550.0,110540.0,0.38073304]
[1761249005183,0.65774378,110550.0,110540.0,0.38073304]
[1761249005384,0.65774378,110550.0,110540.0,0.06333304]
[1761249005688,1.18043994,110550.0,110540.0,0.02783304]
[1761249005880,0.85664762,110550.0,110540.0,0.02783304]
[1761249006190,1.18043994,110550.0,110540.0,0.00552304]
[1761249006382,1.18754994,110550.0,110540.0,0.00552304]
[1761249006692,1.02665378,110550.0,110540.0,0.00452304]
[1761249006891,1.18854994,110550.0,110540.0,0.00452304]
[1761249007479,1.90602994,110550.0,110540.0,0.00452304]
[1761249007787,2.15017223,110550.0,110530.0,0.31844]
[1761249007992,2.15017223,110550.0,110520.0,0.05781]
[1761249007993,0.1138477,110530.0,110520.0,0.05781]
[1761249008290,0.63654386,110530.0,110520.0,0.05781]
[1761249008487,0.63654386,110530.0,110510.0,0.37629]
[1761249008488,0.1138559,110520.0,110510.0,0.37629]
[1761249008685,0.79844822,110520.0,110510.0,0.31848]
[1761249009083,0.79844822,110520.0,110510.0,0.36229]
[1761249009386,0.79844822,110520.0,110510.0,0.37629]
[1761249009596,0.1138641,110510.0,110500.0,0.06233468]
[1761249009784,0.63656026,110510.0,110500.0,0.06233468]
[1761249011288,0.63656026,110510.0,110500.0,0.06433468]
[1761249012293,0.79845642,110510.0,110500.0,0.06433468]
[1761249012484,0.80556642,110510.0,110500.0,0.00652468]
[1761249012884,0.4817741,110510.0,110500.0,0.00652468]
[1761249013085,0.80556642,110510.0,110500.0,0.00652468]
[1761249013888,1.12412642,110510.0,110500.0,0.00652468]
[1761249014194,1.14539169,110510.0,110500.0,0.00652468]
[1761249015393,1.12412642,110510.0,110500.0,0.00652468]
[1761249015595,1.14537309,110510.0,110500.0,0.00652468]
[1761249015999,1.14637309,110510.0,110500.0,0.00452468]
[1761249016584,1.13926309,110510.0,110500.0,0.02683468]
[1761249016797,0.63756026,110510.0,110500.0,0.06233468]
[1761249017190,0.95612026,110510.0,110500.0,0.06233468]
[1761249017384,1.12512642,110510.0,110500.0,0.00452468]
[1761249019193,1.14636534,110510.0,110500.0,0.00452468]
[1761249019396,1.12512642,110510.0,110500.0,0.00452468]
[1761249020291,1.13925741,110510.0,110500.0,0.02683468]
[1761249020485,1.14636741,110510.0,110500.0,0.00452468]
[1761249020792,1.13925741,110510.0,110500.0,0.04833468]
[1761249021198,0.49690509,110510.0,110500.0,0.22423084]
[1761249021395,0.63756026,110510.0,110500.0,0.31470314]
[1761249021790,0.54709616,110510.0,110500.0,0.31470314]
[1761249021993,0.3852,110510.0,110500.0,0.31470314]
[1761249022190,0.3735,110510.0,110500.0,0.71470314]
[1761249022389,0.001,110510.0,110500.0,0.8765993]
[1761249022591,0.63655916,110520.0,110510.0,0.1482741]
[1761249022796,0.63655916,110520.0,110510.0,0.4669541]
[1761249022998,0.79845532,110520.0,110510.0,0.4669541]
[1761249023190,0.63655916,110520.0,110510.0,0.4669541]
[1761249023389,0.79845532,110520.0,110510.0,0.37649]
[1761249023592,0.79845532,110520.0,110510.0,0.4669541]
[1761249024302,0.81972925,110520.0,110510.0,0.4719541]
[1761249024501,0.81972925,110520.0,110510.0,0.38149]
[1761249024802,0.81972925,110520.0,110510.0,0.4719541]
[1761249025102,0.65783309,110520.0,110510.0,0.4729541]
[1761249025706,0.64613309,110520.0,110510.0,0.4729541]
[1761249026003,0.65783309,110520.0,110510.0,0.4729541]
[1761249026402,0.81972925,110520.0,110510.0,0.38249]
[1761249027002,0.81972925,110520.0,110510.0,0.4729541]
[1761249027605,0.65783309,110520.0,110510.0,0.4729541]
[1761249029008,0.69026494,110520.0,110510.0,0.4729541]
[1761249029310,0.59980194,110520.0,110510.0,0.63485026]
[1761249029509,0.59980194,110520.0,110510.0,1.03485026]
[1761249029510,0.10252006,110520.0,110510.0,1.03485026]
[1761249029698,0.05674674,110520.0,110510.0,1.39565026]
[1761249029893,0.05674674,110520.0,110510.0,1.55754642]
[1761249029894,0.02431489,110520.0,110510.0,1.55754642]
[1761249030104,0.02431489,110520.0,110510.0,1.39565026]
[1761249030503,0.04771489,110520.0,110510.0,1.2337541]
[1761249030811,0.13817079,110520.0,110510.0,1.39565026]
[1761249031009,0.13817079,110520.0,110510.0,0.99565026]
[1761249031907,0.12647079,110520.0,110510.0,0.99565026]
[1761249032322,0.02431489,110520.0,110510.0,0.99565026]
[1761249032623,0.03601489,110520.0,110510.0,0.99565026]
[1761249033821,0.12647079,110520.0,110510.0,0.99565026]
[1761249034022,0.12647079,110520.0,110510.0,0.8337541]
[1761249034321,0.11477079,110520.0,110510.0,0.99565026]
[1761249034715,0.85519496,110520.0,110510.0,0.1542741]
[1761249035014,0.69025784,110520.0,110510.0,0.4727941]
[1761249035216,0.73907212,110520.0,110510.0,0.4727941]
[1761249036115,0.73907212,110520.0,110510.0,0.63469026]
[1761249036415,0.73907212,110520.0,110510.0,0.4727941]
[1761249037716,0.37827212,110520.0,110510.0,0.4727941]
[1761249038019,0.35699819,110520.0,110510.0,0.4727941]
[1761249038314,0.17170203,110520.0,110510.0,1.03469026]
[1761249038520,0.12288775,110520.0,110510.0,1.03469026]
[1761249038724,0.03243185,110520.0,110510.0,1.03469026]
[1761249038916,0.17170203,110520.0,110510.0,1.03469026]
[1761249039116,0.14723517,110520.0,110510.0,1.03469026]